[Event "Lueneburg Open-B 2019"]
[Site "Lueneburg"]
[Date "2019.08.10"]
[Round "8.13"]
[White "Geissler, Karl-Heinz"]
[Black "Jessen, Bjarne"]
[Result "1-0"]
[ECO "D02"]
[WhiteElo "1581"]
[BlackElo "1569"]
[Annotator "NA"]
[PlyCount "89"]
[EventDate "2019.08.03"]
[EventType "swiss"]
[EventCountry "GER"]
[SourceTitle "playchess.com"]
[Source "ChessBase"]
[SourceQuality "1"]
[TimeControl "40/5400+30:1800+30"]

1. d4 {[%emt 0:00:00]} Nf6 {[%emt 0:00:00]} 2. Nf3 {[%emt 0:00:00]} c5 {[%emt 0:00:15]} 3. c3 {[%emt 0:00:12]} d5 {[%emt 0:01:25]} 4. Bf4 {[%emt 0:01:01]} Qb6 {[%emt 0:03:18]} 5. Qb3 {[%emt 0:01:43]} c4 {[%emt 0:02:47]} 6. Qc2 {[%emt 0:00:16]} Nc6 {[%emt 0:01:33]} 7. Nbd2 {[%emt 0:04:20]} g6 {[%emt 0:03:11]} 8. e3 {[%emt 0:03:22]} Bf5 {[%emt 0:00:35]} 9. Qc1 {[%emt 0:00:09]} Bg7 {[%emt 0:02:44]} 10. h3 {[%emt 0:02:03]} Ne4 {[%emt 0:02:39]} 11. g4 {[%emt 0:01:23]} Nxd2 {[%emt 0:00:28]} 12. Nxd2 {[%emt 0:00:28]} Bd7 {[%emt 0:01:10]} 13. Bg2 {[%emt 0:02:35]} e6 {[%emt 0:04:19]} 14. e4 {[%emt 0:01:27]} e5 {[%emt 0:00:42]} 15. exd5 {[%emt 0:03:47]} exf4 {[%emt 0:01:22]} 16. Nxc4 {[%emt 0:00:31]} Qc7 {[%emt 0:00:35]} 17. d6 {[%emt 0:05:51]} Qd8 {[%emt 0:01:25]} 18. Qxf4 {[%emt 0:00:29]} O-O {[%emt 0:00:48]} 19. O-O-O {[%emt 0:02:36]} f5 {[%emt 0:01:14]} 20. g5 {[%emt 0:02:40]} Rc8 {[%emt 0:03:39]} 21. Bd5+ {[%emt 0:02:27]} Kh8 {[%emt 0:00:19]} 22. h4 {[%emt 0:02:39]} b5 {[%emt 0:00:57]} 23. Ne5 {[%emt 0:01:35]} Nxe5 {[%emt 0:01:27]} 24. dxe5 {[%emt 0:00:26]} Re8 {[%emt 0:04:50]} 25. Rhe1 {[%emt 0:01:35]} b4 {[%emt 0:04:23]} 26. c4 {[%emt 0:00:32]} Qa5 {[%emt 0:03:14]} 27. Kb1 {[%emt 0:00:50]} Be6 {[%emt 0:06:13]} 28. Qh2 {[%emt 0:06:59]} Qc5 {[%emt 0:03:24]} 29. b3 {[%emt 0:02:09]} a5 {[%emt 0:00:44]} 30. f4 {[%emt 0:03:19]} h5 {[%emt 0:03:43]} 31. Bxe6 {[%emt 0:06:14]} Rxe6 {[%emt 0:02:49]} 32. Rd5 {[%emt 0:00:09]} Qa7 {[%emt 0:00:37]} 33. Qc2 {[%emt 0:01:10]} Bf8 {[%emt 0:02:22]} 34. Red1 {[%emt 0:02:05]} Rd8 {[%emt 0:00:30]} 35. c5 {[%emt 0:00:57]} Qb8 {[%emt 0:01:28]} 36. Qc4 {[%emt 0:00:58]} Qb7 {[%emt 0:01:53]} 37. R5d4 {[%emt 0:04:46]} Ree8 {[%emt 0:01:33]} 38. c6 {[%emt 0:01:23]} Qb6 {[%emt 0:00:15]} 39. e6 {[%emt 0:02:09]} Bg7 {[%emt 0:00:16]} 40. R4d2 {[%emt 0:05:45]} Rxe6 {[%emt 0:02:34]} 41. Qxe6 {[%emt 0:30:53]} Qxc6 {[%emt 0:30:03]} 42. Rc2 {[%emt 0:02:02]} Qf3 {[%emt 0:00:17]} 43. Rdc1 {[%emt 0:01:52]} Qxf4 {[%emt 0:00:04]} 44. Rc8 {[%emt 0:09:46]} Rxc8 {[%emt 0:00:42]} 45. Rxc8+ {[%emt 0:00:27]} 1-0

[Event "Lueneburg Open-B 2019"]
[Site "Lueneburg"]
[Date "2019.08.10"]
[Round "8.14"]
[White "Schencke, Guenther"]
[Black "Schulze, Lukas"]
[Result "1/2-1/2"]
[ECO "A56"]
[WhiteElo "1668"]
[BlackElo "1724"]
[Annotator "NA"]
[PlyCount "78"]
[EventDate "2019.08.03"]
[EventType "swiss"]
[EventCountry "GER"]
[SourceTitle "playchess.com"]
[Source "ChessBase"]
[SourceQuality "1"]
[TimeControl "40/5400+30:1800+30"]

1. d4 {[%emt 0:00:00]} Nf6 {[%emt 0:00:00]} 2. c4 {[%emt 0:00:00]} c5 {[%emt 0:00:00]} 3. e3 {[%emt 0:00:10]} d6 {[%emt 0:00:32]} 4. Nc3 {[%emt 0:00:42]} g6 {[%emt 0:00:39]} 5. dxc5 {[%emt 0:03:29]} dxc5 {[%emt 0:00:31]} 6. Qxd8+ {[%emt 0:00:06]} Kxd8 {[%emt 0:00:01]} 7. b3 {[%emt 0:03:28]} Bg7 {[%emt 0:03:25]} 8. Bb2 {[%emt 0:00:02]} b6 {[%emt 0:04:33]} 9. O-O-O+ {[%emt 1:26:33]} Ke8 {[%emt 1:24:49]} 10. Nd5 {[%emt 0:00:00]} Na6 {[%emt 0:00:00]} 11. Nxf6+ {[%emt 0:01:00]} Bxf6 {[%emt 0:00:00]} 12. a3 {[%emt 0:00:00]} Bb7 {[%emt 0:00:00]} 13. Nf3 {[%emt 0:00:00]} Rd8 {[%emt 0:00:00]} 14. Be2 {[%emt 0:00:00]} Nb8 {[%emt 0:00:00]} 15. Rxd8+ {[%emt 0:00:00]} Kxd8 {[%emt 0:00:00]} 16. Rd1+ {[%emt 0:00:00]} Ke8 {[%emt 0:00:00]} 17. Ne1 {[%emt 0:00:00]} Nc6 {[%emt 0:00:00]} 18. Bf3 {[%emt 0:00:00]} Bxb2+ {[%emt 0:00:00]} 19. Kxb2 {[%emt 0:00:00]} e6 {[%emt 0:00:00]} 20. Nd3 {[%emt 0:00:00]} f6 {[%emt 0:00:00]} 21. b4 {[%emt 0:00:00]} cxb4 {[%emt 0:00:00]} 22. axb4 {[%emt 0:00:00]} Nd8 {[%emt 0:00:00]} 23. Bxb7 {[%emt 0:00:00]} Nxb7 {[%emt 0:00:00]} 24. Ra1 {[%emt 0:00:00]} a5 {[%emt 0:00:00]} 25. Kc3 {[%emt 0:00:00]} axb4+ {[%emt 0:00:00]} 26. Kxb4 {[%emt 0:07:30]} Kd7 {[%emt 0:08:30]} 27. Ra7 {[%emt 0:00:00]} Kc6 {[%emt 0:00:00]} 28. Kc3 {[%emt 0:00:00]} Nc5 {[%emt 0:00:00]} 29. Nxc5 {[%emt 0:00:00]} Kxc5 {[%emt 0:00:00]} 30. Rc7+ {[%emt 0:00:00]} Kd6 {[%emt 0:00:00]} 31. Rb7 {[%emt 0:00:00]} Kc6 {[%emt 0:00:00]} 32. Ra7 {[%emt 0:00:00]} e5 {[%emt 0:00:00]} 33. h4 {[%emt 0:00:00]} f5 {[%emt 0:00:00]} 34. g3 {[%emt 0:00:00]} e4 {[%emt 0:00:00]} 35. Re7 {[%emt 0:00:00]} Kd6 {[%emt 0:00:00]} 36. Rb7 {[%emt 0:00:00]} Kc6 {[%emt 0:05:00]} 37. Rg7 Kd6 {[%emt 0:00:30]} 38. Kc2 Kc6 39. Ra7 {[%emt 0:06:30]} h6 {[%emt 0:01:00]} 1/2-1/2

[Event "Lueneburg Open-B 2019"]
[Site "Lueneburg"]
[Date "2019.08.10"]
[Round "8.16"]
[White "Vogel, Elisabeth"]
[Black "Ramme, Georg"]
[Result "1/2-1/2"]
[ECO "B12"]
[WhiteElo "1277"]
[BlackElo "1660"]
[Annotator "NA"]
[PlyCount "73"]
[EventDate "2019.08.03"]
[EventType "swiss"]
[EventCountry "GER"]
[SourceTitle "playchess.com"]
[Source "ChessBase"]
[SourceQuality "1"]
[TimeControl "40/5400+30:1800+30"]

1. e4 {[%emt 0:00:00]} c6 {[%emt 0:00:00]} 2. d4 {[%emt 0:00:00]} d5 {[%emt 0:00:00]} 3. e5 {[%emt 0:03:34]} Bf5 {[%emt 0:00:32]} 4. Nf3 {[%emt 0:00:51]} e6 {[%emt 0:00:22]} 5. Bd3 {[%emt 0:01:25]} Bxd3 {[%emt 0:00:07]} 6. Qxd3 {[%emt 0:00:46]} Nd7 {[%emt 0:01:09]} 7. O-O {[%emt 0:09:49]} Qb6 {[%emt 0:02:07]} 8. Qb3 {[%emt 0:00:45]} Ne7 {[%emt 0:06:05]} 9. Be3 {[%emt 0:00:24]} Nf5 {[%emt 0:03:48]} 10. Nbd2 {[%emt 0:03:04]} Be7 {[%emt 0:04:51]} 11. Rac1 {[%emt 0:04:49]} O-O {[%emt 0:01:51]} 12. c4 {[%emt 0:03:25]} Rfc8 {[%emt 0:05:33]} 13. c5 {[%emt 0:02:28]} Qxb3 {[%emt 0:03:15]} 14. Nxb3 {[%emt 0:01:07]} Nxe3 {[%emt 0:02:11]} 15. fxe3 {[%emt 0:00:14]} a5 {[%emt 0:03:16]} 16. Nbd2 {[%emt 0:04:14]} a4 {[%emt 0:03:13]} 17. Rc3 {[%emt 0:07:51]} Bd8 {[%emt 0:07:41]} 18. Rc2 {[%emt 0:01:52]} Nb8 {[%emt 0:05:56]} 19. Nb1 {[%emt 0:02:21]} Na6 {[%emt 0:06:29]} 20. a3 {[%emt 0:00:33]} Nc7 {[%emt 0:01:43]} 21. Nc3 {[%emt 0:00:54]} Ra5 {[%emt 0:01:33]} 22. Rfc1 {[%emt 0:04:17]} Nb5 {[%emt 0:06:29]} 23. Nxb5 {[%emt 0:00:33]} Rxb5 {[%emt 0:00:19]} 24. Kf1 {[%emt 0:04:32]} Ra8 {[%emt 0:02:14]} 25. Ke2 {[%emt 0:01:09]} Ba5 {[%emt 0:01:10]} 26. Ne1 {[%emt 0:01:03]} Rb3 {[%emt 0:03:25]} 27. Nd3 {[%emt 0:01:35]} Ra6 {[%emt 0:00:59]} 28. h3 {[%emt 0:05:34]} Bd8 {[%emt 0:01:25]} 29. Nb4 {[%emt 0:02:10]} Ra5 {[%emt 0:01:30]} 30. Nd3 {[%emt 0:01:14]} Rab5 {[%emt 0:04:28]} 31. Rd1 {[%emt 0:04:07]} Ba5 {[%emt 0:00:53]} 32. g3 {[%emt 0:05:09]} Kf8 {[%emt 0:01:16]} 33. Rdc1 {[%emt 0:01:24]} Ke8 {[%emt 0:02:49]} 34. Rd1 {[%emt 0:00:08]} Kd7 {[%emt 0:00:04]} 35. Rdc1 {[%emt 0:00:25]} g5 {[%emt 0:00:34]} 36. Rf1 {[%emt 0:00:42]} Ke8 {[%emt 0:01:54]} 37. Rd1 {[%emt 0:02:39]} 1/2-1/2

[Event "Lueneburg Open-B 2019"]
[Site "Lueneburg"]
[Date "2019.08.10"]
[Round "8.17"]
[White "Hinke, Gerhard"]
[Black "Hotz, Herbert"]
[Result "1-0"]
[ECO "B13"]
[WhiteElo "1476"]
[BlackElo "1547"]
[Annotator "NA"]
[PlyCount "61"]
[EventDate "2019.08.03"]
[EventType "swiss"]
[EventCountry "GER"]
[SourceTitle "playchess.com"]
[Source "ChessBase"]
[SourceQuality "1"]
[TimeControl "40/5400+30:1800+30"]

1. e4 {[%emt 0:00:00]} c6 {[%emt 0:00:00]} 2. d4 {[%emt 0:00:06]} d5 {[%emt 0:00:00]} 3. exd5 {[%emt 0:00:14]} cxd5 {[%emt 0:00:00]} 4. Bd3 {[%emt 0:00:14]} Nc6 {[%emt 0:00:05]} 5. c3 {[%emt 0:00:31]} Qc7 {[%emt 0:00:22]} 6. Ne2 {[%emt 0:00:45]} Nf6 {[%emt 0:02:09]} 7. Bf4 {[%emt 0:00:39]} e5 {[%emt 0:00:41]} 8. dxe5 {[%emt 0:02:19]} Nxe5 {[%emt 0:00:17]} 9. O-O {[%emt 0:01:19]} Bd6 {[%emt 0:01:03]} 10. Bxe5 {[%emt 0:00:45]} Bxe5 {[%emt 0:00:11]} 11. Ng3 {[%emt 0:00:11]} O-O {[%emt 0:01:09]} 12. Re1 {[%emt 0:00:21]} Re8 {[%emt 0:00:25]} 13. Nd2 {[%emt 0:00:28]} b6 {[%emt 0:03:22]} 14. Qc2 {[%emt 0:00:32]} g6 {[%emt 0:04:41]} 15. Nf3 {[%emt 0:00:31]} Bd6 {[%emt 0:05:16]} 16. Rxe8+ {[%emt 0:00:51]} Nxe8 {[%emt 0:00:12]} 17. Re1 {[%emt 0:00:13]} Bb7 {[%emt 0:01:07]} 18. Bb5 {[%emt 0:01:09]} Nf6 {[%emt 0:03:36]} 19. Nd4 {[%emt 0:00:21]} Kg7 {[%emt 0:03:37]} 20. Bd3 {[%emt 0:02:23]} a6 {[%emt 0:07:09]} 21. Nf1 {[%emt 0:06:01]} Rc8 {[%emt 0:01:39]} 22. Qe2 {[%emt 0:03:29]} b5 {[%emt 0:07:16]} 23. a3 {[%emt 0:02:31]} Qd7 {[%emt 0:04:24]} 24. h3 {[%emt 0:04:06]} Re8 {[%emt 0:04:29]} 25. Qd1 {[%emt 0:00:12]} Ne4 {[%emt 0:07:44]} 26. Bxe4 {[%emt 0:08:02]} Rxe4 {[%emt 0:02:48]} 27. Rxe4 {[%emt 0:00:18]} dxe4 {[%emt 0:00:09]} 28. Ne3 {[%emt 0:00:27]} f5 {[%emt 0:02:08]} 29. Qb3 {[%emt 0:01:57]} Kh6 {[%emt 0:07:41]} 30. Qd1 {[%emt 0:01:11]} Qe8 {[%emt 0:03:02]} 31. Ndxf5+ {[%emt 0:01:58]} 1-0

[Event "Lueneburg Open-B 2019"]
[Site "Lueneburg"]
[Date "2019.08.10"]
[Round "8.20"]
[White "Buchinger, Alexis"]
[Black "Krueger, Dietrich"]
[Result "1-0"]
[ECO "C45"]
[WhiteElo "1346"]
[BlackElo "1243"]
[Annotator "NA"]
[PlyCount "73"]
[EventDate "2019.08.03"]
[EventType "swiss"]
[EventCountry "GER"]
[SourceTitle "playchess.com"]
[Source "ChessBase"]
[SourceQuality "1"]
[TimeControl "40/5400+30:1800+30"]

1. e4 {[%emt 0:00:00]} Nc6 {[%emt 0:00:00]} 2. Nf3 {[%emt 0:00:11]} e5 {[%emt 0:00:33]} 3. d4 {[%emt 0:00:25]} exd4 {[%emt 0:01:21]} 4. Nxd4 {[%emt 0:00:08]} Bc5 {[%emt 0:03:37]} 5. Be3 {[%emt 0:00:17]} d6 {[%emt 0:01:29]} 6. Nxc6 {[%emt 0:00:21]} bxc6 {[%emt 0:00:26]} 7. Bxc5 {[%emt 0:00:06]} dxc5 {[%emt 0:00:24]} 8. Qxd8+ {[%emt 0:00:02]} Kxd8 {[%emt 1:26:10]} 9. Nc3 {[%emt 1:33:00]} Rb8 {[%emt 0:00:00]} 10. O-O-O+ {[%emt 0:00:00]} Ke7 {[%emt 0:00:00]} 11. Na4 {[%emt 0:00:00]} Be6 {[%emt 0:00:00]} 12. Nxc5 {[%emt 0:01:30]} Rd8 {[%emt 0:02:00]} 13. Nxe6 {[%emt 0:00:30]} fxe6 {[%emt 0:00:30]} 14. Rxd8 {[%emt 0:00:30]} Kxd8 {[%emt 0:00:30]} 15. Kd2 {[%emt 0:00:30]} Nf6 {[%emt 0:00:00]} 16. Bd3 {[%emt 0:00:00]} Kd7 {[%emt 0:00:00]} 17. f3 {[%emt 0:00:00]} Rb8 {[%emt 0:00:00]} 18. b3 {[%emt 0:00:00]} Kd6 {[%emt 0:00:00]} 19. f4 {[%emt 0:00:00]} Nh5 {[%emt 0:02:30]} 20. Rf1 {[%emt 0:02:30]} Rf8 {[%emt 0:00:00]} 21. Ke3 {[%emt 0:00:00]} h6 {[%emt 0:00:00]} 22. g4 {[%emt 0:00:00]} Nf6 {[%emt 0:00:00]} 23. e5+ {[%emt 0:00:00]} Kc5 {[%emt 0:00:00]} 24. exf6 {[%emt 0:00:00]} Rxf6 {[%emt 0:00:00]} 25. f5 {[%emt 0:00:00]} e5 {[%emt 0:00:00]} 26. Ke4 {[%emt 0:00:00]} Kb4 {[%emt 0:00:00]} 27. a4 {[%emt 0:00:00]} g6 {[%emt 0:04:00]} 28. fxg6 {[%emt 0:04:00]} Rxg6 {[%emt 0:00:00]} 29. Kxe5 {[%emt 0:00:00]} Rxg4 {[%emt 0:00:00]} 30. Rf4+ {[%emt 0:00:00]} Rxf4 {[%emt 0:00:00]} 31. Kxf4 {[%emt 0:00:00]} Kc3 {[%emt 0:02:00]} 32. Kg4 {[%emt 0:02:00]} a5 {[%emt 0:00:00]} 33. Kh5 {[%emt 0:00:00]} c5 {[%emt 0:00:00]} 34. Kxh6 {[%emt 0:00:00]} Kd4 {[%emt 0:00:00]} 35. Kg7 {[%emt 0:00:00]} Ke5 {[%emt 0:00:00]} 36. h4 {[%emt 0:00:00]} Kf4 {[%emt 0:00:00]} 37. h5 {[%emt 0:02:30]} 1-0